fUST/lending_fUST_20250618
["ID","MTS","AMOUNT","RATE_DAILY","PERIOD"]
[366447783,1750259440227,-460.0,0.00021917,6]
[366447784,1750259440236,-430.0,0.00021917,6]
[366447785,1750259440246,-460.0,0.00021917,6]
[366447786,1750259440255,-460.0,0.00021917,6]
[366447787,1750259440264,-286.61897784,0.00021917,6]
[366447788,1750259440274,-317.78238566,0.00021917,6]
[366447789,1750259440283,-460.0,0.00021917,6]
[366447790,1750259440293,-460.0,0.00021917,6]
[366447791,1750259440303,-460.0,0.00021917,6]
[366447792,1750259440312,-370.0,0.00021917,6]
[366447793,1750259440322,-216.62490684,0.00021917,6]
[366447794,1750259440332,-460.0,0.00021917,6]
[366447801,1750259440422,-460.0,0.00021917,6]
[366447802,1750259440446,-357.76999194,0.00021917,6]
[366447803,1750259440456,-460.0,0.00021917,6]
[366447804,1750259440466,-460.0,0.00021917,6]
[366447805,1750259440475,-430.0,0.00021917,6]
[366447806,1750259440485,-460.0,0.00021917,6]
[366447807,1750259440495,-430.0,0.00021917,6]
[366447808,1750259440505,-186.90518659,0.00021917,6]
[366447809,1750259440515,-462.7244869,0.00021917,6]
[366447810,1750259440525,-460.0,0.00021917,6]
[366447811,1750259440535,-440.0,0.00021917,6]
[366447812,1750259440544,-486.74240925,0.00021917,6]
[366447813,1750259440554,-350.0,0.00021917,6]
[366447814,1750259440564,-460.0,0.00021917,6]
[366447815,1750259440574,-460.0,0.00021917,6]
[366447816,1750259440584,-430.0,0.00021917,6]
[366447817,1750259440594,-460.0,0.00021917,6]
[366447818,1750259440603,-460.0,0.00021917,6]
[366447819,1750259440613,-460.0,0.00021917,6]
[366447820,1750259440623,-430.0,0.00021917,6]
[366447821,1750259440632,-460.0,0.00021917,6]
[366447822,1750259440642,-460.0,0.00021917,6]
[366447823,1750259440652,-408.19366394,0.00021917,6]
[366447824,1750259440661,-420.0,0.00021917,6]
[366447825,1750259440671,-460.0,0.00021917,6]
[366447826,1750259440680,-460.0,0.00021917,6]
[366447827,1750259440690,-460.0,0.00021917,6]
[366447828,1750259440699,-460.0,0.00021917,6]
[366447829,1750259440709,-460.0,0.00021917,6]
[366447830,1750259440719,-440.0,0.00021917,6]
[366447831,1750259440728,-460.0,0.00021917,6]
[366447832,1750259440738,-460.0,0.00021917,6]
[366447833,1750259440747,-460.0,0.00021917,6]
[366447834,1750259440757,-692.42,0.00021917,6]
[366447835,1750259440767,-692.42,0.00021917,6]
[366447836,1750259440777,-692.42,0.00021917,6]
[366447837,1750259440786,-692.42,0.00021917,6]
[366447838,1750259440796,-692.42,0.00021917,6]
[366447839,1750259440805,-442.34463731,0.00021917,6]
[366447840,1750259440821,-250.07536269,0.00021917,6]
[366447841,1750259440831,-692.42,0.00021917,6]
[366447842,1750259440841,-253.98043544,0.00021917,6]
[366447843,1750259440850,-460.0,0.00021917,6]
[366447844,1750259440859,-534.9392478,0.00021917,6]
[366447845,1750259440871,-698.3207522,0.00021917,6]
[366447846,1750259440880,-460.0,0.00021917,6]
[366447847,1750259440890,-67.93821107,0.00021917,6]
[366447848,1750259440902,-392.06178893,0.00021917,6]
[366447849,1750259440911,-460.0,0.00021917,6]
[366447850,1750259440920,-460.0,0.00021917,6]
[366447851,1750259440930,-460.0,0.00021917,6]
[366447852,1750259440939,-460.0,0.00021917,6]
[366447853,1750259440948,-460.0,0.00021917,6]
[366447854,1750259440958,-440.0,0.00021917,6]
[366447855,1750259440967,-460.0,0.00021917,6]
[366447856,1750259440976,-404.24566802,0.00021917,6]
[366447857,1750259440985,-460.0,0.00021917,6]
[366447858,1750259440995,-460.0,0.00021917,6]
[366447859,1750259441005,-460.0,0.00021917,6]
[366447860,1750259441014,-1826.5,0.00021917,6]
[366447861,1750259441025,-460.0,0.00021917,6]
[366447862,1750259441035,-460.0,0.00021917,6]
[366447863,1750259441044,-253.02667579,0.00021917,6]
[366447864,1750259441053,-442.50372634,0.00021917,6]
[366447865,1750259441062,-430.0,0.00021917,6]
[366447866,1750259441072,-460.0,0.00021917,6]
[366447867,1750259441082,-460.0,0.00021917,6]
[366447868,1750259441091,-460.0,0.00021917,6]
[366447869,1750259441100,-460.0,0.00021917,6]
[366447870,1750259441110,-460.0,0.00021917,6]
[366447871,1750259441120,-1353.24,0.00021917,6]
[366447872,1750259441129,-460.0,0.00021917,6]
[366447873,1750259441143,-430.52591696,0.00021917,6]
[366447874,1750259441153,-460.0,0.00021917,6]
[366447875,1750259441162,-460.0,0.00021917,6]
[366447876,1750259441172,-460.0,0.00021917,6]
[366447877,1750259441182,-460.0,0.00021917,6]
[366447878,1750259441192,-460.0,0.00021917,6]
[366447879,1750259441202,-460.0,0.00021917,6]
[366447880,1750259441211,-1742.74,0.00021917,6]
[366447881,1750259441222,-460.0,0.00021917,6]
[366447882,1750259441232,-460.0,0.00021917,6]
[366447883,1750259441241,-460.0,0.00021917,6]
[366447884,1750259441251,-460.0,0.00021917,6]
[366447885,1750259441260,-460.0,0.00021917,6]
[366447886,1750259441270,-1845.42,0.00021917,6]
[366447887,1750259441279,-460.0,0.00021917,6]
[366447888,1750259441288,-220.0,0.00021917,6]
[366447889,1750259441298,-412.14,0.00021917,6]
[366447890,1750259441307,-460.0,0.00021917,6]
[366447891,1750259441317,-460.0,0.00021917,6]
[366447892,1750259441327,-417.0134311,0.00021917,6]
[366447893,1750259441337,-460.0,0.00021917,6]
[366447894,1750259441346,-460.0,0.00021917,6]
[366447895,1750259441356,-460.0,0.00021917,6]
[366447896,1750259441366,-440.0,0.00021917,6]
[366447897,1750259441375,-460.0,0.00021917,6]
[366447898,1750259441385,-749.33,0.00021917,6]
[366447899,1750259441403,-460.0,0.00021917,6]
[366447900,1750259441413,-460.0,0.00021917,6]
[366447901,1750259441423,-460.0,0.00021917,6]
[366447902,1750259441433,-460.0,0.00021917,6]
[366447903,1750259441442,-460.0,0.00021917,6]
[366447904,1750259441451,-460.0,0.00021917,6]
[366447905,1750259441461,-460.0,0.00021917,6]
[366447906,1750259441470,-460.0,0.00021917,6]
[366447907,1750259441480,-460.0,0.00021917,6]
[366447908,1750259441490,-460.0,0.00021917,6]
[366447909,1750259441499,-460.0,0.00021917,6]
[366447910,1750259441509,-460.0,0.00021917,6]
[366447911,1750259441520,-460.0,0.00021917,6]
[366447912,1750259441530,-1272.6,0.00021917,6]
[366447913,1750259441539,-460.0,0.00021917,6]
[366447914,1750259441548,-255.24297421,0.00021917,6]
[366447915,1750259441557,-460.0,0.00021917,6]
[366447916,1750259441567,-440.0,0.00021917,6]
[366447917,1750259441577,-460.0,0.00021917,6]
[366447918,1750259441587,-460.0,0.00021917,6]
[366447919,1750259441597,-460.0,0.00021917,6]
[366447920,1750259441606,-420.0,0.00021917,6]
[366447921,1750259441617,-746.57,0.00021917,6]
[366447922,1750259441626,-410.0,0.00021917,6]
[366447923,1750259441636,-460.0,0.00021917,6]
[366447924,1750259441646,-460.0,0.00021917,6]
[366447925,1750259441656,-1737.78,0.00021917,6]
[366447926,1750259441666,-460.0,0.00021917,6]
[366447927,1750259441675,-460.0,0.00021917,6]
[366447928,1750259441685,-460.0,0.00021917,6]
[366447929,1750259441694,-460.0,0.00021917,6]
[366447930,1750259441704,-460.0,0.00021917,6]
[366447931,1750259441713,-460.0,0.00021917,6]
[366447932,1750259441723,-460.0,0.00021917,6]
[366447933,1750259441732,-460.0,0.00021917,6]
[366447934,1750259441742,-460.0,0.00021917,6]
[366447935,1750259441751,-460.0,0.00021917,6]
[366447936,1750259441761,-460.0,0.00021917,6]
[366447937,1750259441771,-460.0,0.00021917,6]
[366447938,1750259441780,-495.58,0.00021917,6]
[366447939,1750259441790,-460.0,0.00021917,6]
[366447940,1750259441799,-460.0,0.00021917,6]
[366447941,1750259441808,-444.63896894,0.00021917,6]
[366447942,1750259441818,-460.0,0.00021917,6]
[366447943,1750259441827,-460.0,0.00021917,6]
[366447944,1750259441837,-460.0,0.00021917,6]
[366447945,1750259441846,-430.0,0.00021917,6]
[366447946,1750259441855,-460.0,0.00021917,6]
[366447947,1750259441865,-1080.31,0.00021917,6]
[366447948,1750259441874,-440.0,0.00021917,6]
[366447949,1750259441883,-498.61375851,0.00021917,6]
[366447950,1750259441892,-460.0,0.00021917,6]
[366447951,1750259441902,-460.0,0.00021917,6]
[366447952,1750259441911,-460.0,0.00021917,6]
[366447953,1750259441920,-534.59,0.00021917,6]
[366447954,1750259441930,-460.0,0.00021917,6]
[366447955,1750259441940,-460.0,0.00021917,6]
[366447956,1750259441949,-434.80726622,0.00021917,6]
[366447957,1750259441958,-460.0,0.00021917,6]
[366447958,1750259441968,-460.0,0.00021917,6]
[366447959,1750259441977,-5034.3,0.00021917,6]
[366447960,1750259441987,-460.0,0.00021917,6]
[366447961,1750259441997,-1487.46,0.00021917,6]
[366447962,1750259442007,-460.0,0.00021917,6]
[366447963,1750259442017,-460.0,0.00021917,6]
[366447964,1750259442026,-460.0,0.00021917,6]
[366447965,1750259442035,-440.0,0.00021917,6]
[366447966,1750259442044,-460.0,0.00021917,6]
[366447967,1750259442055,-731.43,0.00021917,6]
[366447968,1750259442064,-460.0,0.00021917,6]
[366447969,1750259442073,-533.14,0.00021917,6]
[366447970,1750259442082,-2554.66,0.00021917,6]
[366447971,1750259442091,-575.95850127,0.00021917,6]
[366447972,1750259442101,-460.0,0.00021917,6]
[366447973,1750259442111,-460.0,0.00021917,6]
[366447974,1750259442120,-460.0,0.00021917,6]
[366447975,1750259442130,-460.0,0.00021917,6]
[366447976,1750259442143,-264.57872674,0.00021917,6]
[366447977,1750259442152,-460.0,0.00021917,6]
[366447978,1750259442163,-603.97,0.00021917,6]
[366447979,1750259442173,-460.0,0.00021917,6]
[366447980,1750259442184,-460.0,0.00021917,2]
[366447981,1750259442193,-320.0,0.00021917,6]
[366447982,1750259442203,-460.0,0.00021917,6]
[366447983,1750259442214,-460.0,0.00021917,6]
[366447984,1750259442224,-460.0,0.00021917,6]
[366447985,1750259442234,-1663.54915656,0.00021969,6]
[366447986,1750259442243,-1134.41964884,0.00021972,2]
[366447987,1750259442252,-503.02473466,0.00021973,2]
[366447988,1750259442263,-500.0,0.00021973,2]
[366447989,1750259442273,-500.0,0.00021973,2]
[366447990,1750259442283,-500.0,0.00021973,2]
[366447991,1750259442292,-229.17609474,0.00021973,2]
[366447992,1750259442300,-500.0,0.00021973,2]
[366447993,1750259442310,-500.0,0.00021973,2]
[366447994,1750259442319,-500.0,0.00021973,2]
[366447995,1750259442329,-520.1605393,0.00021973,2]
[366447996,1750259442339,-500.0,0.00021973,2]
[366447997,1750259442348,-500.0,0.00021973,2]
[366447998,1750259442357,-500.0,0.00021973,2]
[366447999,1750259442368,-500.0,0.00021973,2]
[366448000,1750259442377,-500.0,0.00021973,2]
[366448001,1750259442387,-152.99498266,0.00021973,2]
[366448002,1750259442396,-500.0,0.00021973,2]
[366448003,1750259442406,-500.0,0.00021973,2]
[366448004,1750259442415,-615.40032187,0.00021973,2]
[366448005,1750259442425,-500.0,0.00021973,2]
[366448006,1750259442435,-500.0,0.00021973,2]
[366448007,1750259442445,-69961.95,0.00022,7]
[366448008,1750259442455,-4000.0,0.00022,4]
[366448009,1750259442464,-845.78193577,0.00022,7]
[366448010,1750259442474,-2056.2529752,0.00022157,2]
[366448011,1750259442483,-692.42,0.00022164,6]
[366448012,1750259442492,-1178.51,0.00022165,6]
[366448013,1750259442502,-2488.86,0.00022165,6]
[366448014,1750259442513,-962.52,0.00022165,6]
[366448015,1750259442523,-460.0,0.00022165,6]
[366448016,1750259442532,-460.0,0.00022165,6]
[366448017,1750259442542,-460.0,0.00022165,6]
[366448018,1750259442552,-645.84577878,0.00022173,2]
[366448019,1750259442561,-500.0,0.00022173,2]
[366448020,1750259442571,-500.00000001,0.00022173,2]
[366448021,1750259442580,-500.0,0.00022173,2]
[366448022,1750259442590,-1663.54915656,0.00022176,6]
[366448023,1750259442599,-692.42,0.0002219,6]
[366448024,1750259442609,-692.42,0.0002219,6]
[366448025,1750259442618,-460.0,0.00022191,6]
[366448026,1750259442628,-460.0,0.00022191,6]
[366448027,1750259442637,-460.0,0.00022191,6]
[366448028,1750259442646,-460.0,0.00022191,6]
[366448029,1750259442655,-340.0,0.00022191,6]
[366448030,1750259442665,-367.18500208,0.00022191,6]
[366448031,1750259442674,-400.0,0.00022191,6]
[366448032,1750259442684,-494.60559962,0.00022191,6]
[366448033,1750259442693,-316.01161659,0.00022191,6]
[366448034,1750259442703,-460.0,0.00022191,6]
[366448035,1750259442713,-460.0,0.00022191,6]
[366448036,1750259442724,-460.0,0.00022191,6]
[366448037,1750259442734,-391.83496365,0.00022191,6]
[366448039,1750259442743,-460.0,0.00022191,6]
[366448040,1750259442752,-460.0,0.00022191,6]
[366448042,1750259442761,-420.0,0.00022191,6]
[366448043,1750259442771,-314.76786021,0.00022191,6]
[366448044,1750259442781,-460.0,0.00022191,6]
[366448046,1750259442790,-430.0,0.00022191,6]
[366448047,1750259442799,-460.0,0.00022191,6]
[366448048,1750259442808,-460.0,0.00022191,6]
[366448050,1750259442817,-460.0,0.00022191,6]
[366448051,1750259442916,-460.0,0.00022191,6]
[366448052,1750259442927,-460.0,0.00022191,6]
[366448053,1750259442936,-460.0,0.00022191,6]
[366448054,1750259442946,-460.0,0.00022191,6]
[366448055,1750259442955,-460.0,0.00022191,6]
[366448056,1750259442964,-340.0,0.00022191,6]
[366448057,1750259442974,-377.3368377,0.00022191,6]
[366448058,1750259442983,-460.0,0.00022191,6]
[366448059,1750259442992,-97.84218688,0.00022191,6]
[366448064,1750259443351,-500.0,0.00021917,6]
[366448065,1750259443897,-1149.61,0.00021917,6]
[366448066,1750259443908,-42.20170484,0.00022191,6]
[366448067,1750259443922,-279.95610828,0.00022191,6]
[366448068,1750259443932,-460.0,0.00022191,6]
[366448069,1750259443941,-460.0,0.00022191,6]
[366448070,1750259443953,-460.0,0.00022191,6]
[366448071,1750259443963,-210.21782574,0.00022191,6]
[366448078,1750259446724,-929.65220613,0.0002,2]
[366448079,1750259446736,-490.66197027,0.0002,2]
[366448173,1750259599234,453.15990849,0.000189,2]
[366448180,1750259643272,302.10660566,0.000189,2]
[366448186,1750259703279,418.29227388,0.00025232,120]
[366448187,1750259703338,1395.59104767,0.00025232,120]
[366448188,1750259709269,152.93744701,0.000222,69]
[366448202,1750259900464,444.188387,0.000189,2]
[366448207,1750259945007,296.12559133,0.000189,2]
[366448208,1750259981366,161.517365,0.00013699,2]
[366448217,1750260015297,21314.03802947,0.0001903,2]
[366448218,1750260015324,3585.96197053,0.0001903,2]
[366448261,1750260141184,155.95725254,0.00025214,120]
[366448262,1750260151528,238.735223,0.00019029,2]
[366448265,1750260164412,-2241.07302066,0.00019593,2]
[366448266,1750260164436,-1377.6,0.00019791,2]
[366448267,1750260164461,-1200.0,0.00019999,2]
[366448268,1750260164483,-6694.6858236,0.0002,2]
[366448269,1750260164505,-300.0,0.00020038,2]
[366448270,1750260164529,-416.71706057,0.00020038,2]
[366448271,1750260164556,-500.0,0.00020038,2]
[366448272,1750260164580,-466.95894229,0.00020038,2]
[366448273,1750260164605,-500.0,0.00020038,2]
[366448274,1750260164629,-500.0,0.00020038,2]
[366448275,1750260164658,-500.0,0.00020038,2]
[366448276,1750260164682,-500.0,0.00020038,2]
[366448277,1750260164708,-500.0,0.00020038,2]
[366448278,1750260164732,-500.0,0.00020038,2]
[366448279,1750260164758,-500.0,0.00020038,2]
[366448280,1750260164888,-500.0,0.00020038,2]
[366448281,1750260164916,-500.0,0.00020038,2]
[366448282,1750260164940,-500.0,0.00020038,2]
[366448283,1750260164966,-500.0,0.00020038,2]
[366448284,1750260164990,-500.0,0.00020038,2]
[366448285,1750260165016,-500.0,0.00020038,2]
[366448286,1750260165042,-500.0,0.00020038,2]
[366448287,1750260165065,-500.0,0.00020038,2]
[366448288,1750260165090,-500.0,0.00020038,2]
[366448289,1750260165114,-500.0,0.00020038,2]
[366448290,1750260165139,-500.0,0.00020038,2]
[366448291,1750260165163,-500.0,0.00020038,2]
[366448292,1750260165188,-500.0,0.00020038,2]
[366448293,1750260165213,-500.0,0.00020038,2]
[366448294,1750260165239,-500.0,0.00020038,2]
[366448295,1750260165262,-500.0,0.00020038,2]
[366448296,1750260165287,-500.0,0.00020038,2]
[366448297,1750260165311,-500.0,0.00020038,2]
[366448298,1750260165334,-500.0,0.00020038,2]
[366448299,1750260165360,-500.0,0.00020038,2]
[366448300,1750260165385,-500.0,0.00020038,2]
[366448301,1750260165411,-500.0,0.00020038,2]
[366448302,1750260165438,-500.0,0.00020038,2]
[366448303,1750260165463,-163.9838001,0.00020038,2]
[366448304,1750260165488,-500.0,0.00020038,2]
[366448305,1750260165513,-500.0,0.00020038,2]
[366448306,1750260165540,-500.0,0.00020038,2]
[366448307,1750260165564,-138.98135278,0.00020038,2]
[366448308,1750260201541,197.41706089,0.000189,2]
[366448310,1750260218618,-154.15271674,0.00019738,2]
[366448311,1750260218644,-1360.07,0.00019785,2]
[366448312,1750260218669,-5000.0,0.00019838,2]
[366448313,1750260218698,-300.0,0.00020037,2]
[366448314,1750260218723,-361.01864722,0.00020038,2]
[366448315,1750260218750,-500.0,0.00020038,2]
[366448316,1750260218776,-500.0,0.00020038,2]
[366448317,1750260218801,-500.0,0.00020038,2]
[366448318,1750260218827,-500.0,0.00020038,2]
[366448319,1750260218853,-500.0,0.00020038,2]
[366448320,1750260218878,-500.0,0.00020038,2]
[366448321,1750260218905,-500.0,0.00020038,2]
[366448322,1750260218931,-500.0,0.00020038,2]
[366448323,1750260218960,-500.0,0.00020038,2]
[366448324,1750260218985,-324.75863604,0.00020038,2]
[366448325,1750260230501,1218.5198245,0.00019039,2]
[366448330,1750260246954,150.0,0.000189,2]
[366448331,1750260269700,-1402.79,0.00019766,2]
[366448332,1750260269724,-5000.0,0.00019838,2]
[366448333,1750260269749,-686.4866418,0.00019938,2]
[366448334,1750260269772,-300.0,0.00020037,2]
[366448335,1750260269799,-175.24136396,0.00020038,2]
[366448336,1750260269825,-500.0,0.00020038,2]
[366448337,1750260269850,-500.0,0.00020038,2]
[366448338,1750260269875,-500.0,0.00020038,2]
[366448339,1750260269900,-500.0,0.00020038,2]
[366448340,1750260269925,-435.48199424,0.00020038,2]
[366448342,1750260337136,-453.11478686,0.00019837,2]
[366448355,1750260398091,-159.77149774,0.00019766,2]
[366448366,1750260445090,-1382.9,0.00019767,2]
[366448367,1750260445112,-160.61420732,0.00019775,2]
[366448368,1750260445138,-4546.88521314,0.00019837,2]
[366448369,1750260445160,-159.9646163,0.00019936,2]
[366448370,1750260445183,-159.96461629,0.00019937,2]
[366448371,1750260445207,-300.0,0.00020035,2]
[366448372,1750260445230,-300.0,0.00020035,2]
[366448373,1750260445253,-500.0,0.00020036,2]
[366448374,1750260445280,-500.0,0.00020036,2]
[366448375,1750260445307,-500.0,0.00020036,2]
[366448376,1750260445332,-500.0,0.00020036,2]
[366448377,1750260445358,-500.0,0.00020036,2]
[366448378,1750260445383,-500.0,0.00020036,2]
[366448379,1750260445415,-500.0,0.00020036,2]
[366448380,1750260445438,-566.39838001,0.00020036,2]
[366448381,1750260445469,-500.0,0.00020036,2]
[366448382,1750260445496,-500.0,0.00020036,2]
[366448383,1750260445524,-500.0,0.00020036,2]
[366448384,1750260445553,-500.0,0.00020036,2]
[366448385,1750260445585,-500.0,0.00020036,2]
[366448386,1750260445614,-500.0,0.00020036,2]
[366448387,1750260445645,-500.0,0.00020036,2]
[366448388,1750260445675,-500.0,0.00020036,2]
[366448389,1750260445805,-500.0,0.00020036,2]
[366448390,1750260445835,-500.0,0.00020036,2]
[366448391,1750260445864,-500.0,0.00020036,2]
[366448392,1750260445893,-500.0,0.00020036,2]
[366448393,1750260445922,-500.0,0.00020036,2]
[366448394,1750260445950,-135.82578191,0.00020036,2]
[366448395,1750260453277,-364.17421809,0.00020036,2]
[366448396,1750260453305,-500.0,0.00020036,2]
[366448397,1750260453332,-500.0,0.00020036,2]
[366448398,1750260453360,-500.0,0.00020036,2]
[366448399,1750260453388,-500.0,0.00020036,2]
[366448400,1750260453417,-500.0,0.00020036,2]
[366448401,1750260453447,-500.0,0.00020036,2]
[366448402,1750260453477,-500.0,0.00020036,2]
[366448403,1750260453505,-500.0,0.00020036,2]
[366448404,1750260453533,-500.0,0.00020036,2]
[366448405,1750260453669,-500.0,0.00020036,2]
[366448406,1750260453698,-500.0,0.00020036,2]
[366448407,1750260453726,-500.0,0.00020036,2]
[366448408,1750260453754,-81.71123889,0.00020036,2]
[366448411,1750260502800,150.0,0.000189,2]
[366448418,1750260548150,-1365.3,0.00019767,2]
[366448419,1750260548173,-690.78322905,0.00019938,2]
[366448420,1750260548196,-300.0,0.00020035,2]
[366448421,1750260548218,-27977.97098734,0.00020036,2]
[366448422,1750260560104,-22022.02901266,0.00020036,2]
[366448423,1750260560131,-418.28876111,0.00020036,2]
[366448424,1750260560157,-500.0,0.00020036,2]
[366448425,1750260560183,-500.0,0.00020036,2]
[366448426,1750260560322,-500.0,0.00020036,2]
[366448427,1750260560347,-500.0,0.00020036,2]
[366448428,1750260560372,-500.0,0.00020036,2]
[366448429,1750260560396,-500.0,0.00020036,2]
[366448430,1750260560427,-500.0,0.00020036,2]
[366448431,1750260560452,-500.0,0.00020036,2]
[366448432,1750260560481,-500.0,0.00020036,2]
[366448433,1750260560509,-500.0,0.00020036,2]
[366448434,1750260560534,-212.03772205,0.00020036,2]
[366448435,1750260560561,-500.0,0.00020036,2]
[366448436,1750260560590,-394.11154418,0.00020036,2]
[366448455,1750260632667,-1347.92,0.00019519,2]
[366448457,1750260632677,-1000.0,0.0001996,2]
[366448459,1750260632687,-300.0,0.00019998,2]
[366448461,1750260632696,-300.0,0.00019998,2]
[366448462,1750260632706,-300.0,0.00019998,2]
[366448463,1750260632715,-1200.0,0.00019998,2]
[366448464,1750260632725,-229.59982,0.00019998,2]
[366448465,1750260632734,-500.0,0.00019998,2]
[366448466,1750260632743,-500.0,0.00019998,2]
[366448468,1750260632753,-500.0,0.00019998,2]
[366448470,1750260632762,-1000.0,0.00019999,2]
[366448472,1750260632772,-1000.0,0.00019999,2]
[366448474,1750260632782,-1000.0,0.00019999,2]
[366448476,1750260632792,-1000.0,0.00019999,2]
[366448478,1750260632801,-1000.0,0.00019999,2]
[366448480,1750260632810,-1000.0,0.00019999,2]
[366448482,1750260632820,-1000.0,0.00019999,2]
[366448484,1750260632830,-1000.0,0.00019999,2]
[366448486,1750260632839,-1000.0,0.00019999,2]
[366448488,1750260632848,-1000.0,0.00019999,2]
[366448490,1750260632858,-1000.0,0.00019999,2]
[366448492,1750260632868,-1000.0,0.00019999,2]
[366448494,1750260632877,-1000.0,0.00019999,2]
[366448496,1750260632887,-1000.0,0.00019999,2]
[366448498,1750260632897,-1000.0,0.00019999,2]
[366448500,1750260632907,-988.58126011,0.00019999,2]
[366448502,1750260632919,-11.41873989,0.00019999,2]
[366448504,1750260632929,-1000.0,0.00019999,2]
[366448506,1750260632938,-155.0,0.00020038,2]
[366448508,1750260632948,-10000.0,0.00020042,2]
[366448510,1750260632957,-500.0,0.000201,2]
[366448512,1750260632967,-500.0,0.000201,2]
[366448514,1750260632977,-500.0,0.000201,2]
[366448516,1750260632986,-500.0,0.000201,2]
[366448518,1750260632996,-622.76362942,0.000201,2]
[366448520,1750260633005,-504.97186885,0.000201,2]
[366448522,1750260633015,-500.0,0.000201,2]
[366448523,1750260633025,-500.0,0.000201,2]
[366448524,1750260633035,-162.0343182,0.000201,2]
[366448525,1750260633045,-500.0,0.000201,2]
[366448526,1750260633055,-500.0,0.000201,2]
[366448527,1750260633066,-500.0,0.000201,2]
[366448528,1750260633076,-500.0,0.000201,2]
[366448529,1750260633086,-500.0,0.000201,2]
[366448530,1750260633096,-500.0,0.000201,2]
[366448531,1750260633106,-629.88467417,0.000201,2]
[366448532,1750260633116,-500.60381911,0.000201,2]
[366448533,1750260633126,-541.83808783,0.000201,2]
[366448534,1750260633136,-618.23716682,0.000201,2]
[366448535,1750260633146,-500.0,0.000201,2]
[366448536,1750260633156,-500.0,0.000201,2]
[366448537,1750260633166,-500.6815867,0.000201,2]
[366448538,1750260633176,-294.13956959,0.000201,2]
[366448539,1750260633186,-500.0,0.000201,2]
[366448540,1750260633196,-414.04544336,0.00020493,2]
[366448541,1750260633206,-155.0,0.00020586,2]
[366448542,1750260633216,-500.0,0.00020647,2]
[366448543,1750260633226,-500.0,0.00020647,2]
[366448544,1750260633236,-237.9061509,0.00020647,2]
[366448545,1750260633245,-500.0,0.00020648,2]
[366448546,1750260633255,-1000.0,0.00020648,2]
[366448547,1750260633265,-362.05087146,0.00020648,2]
[366448548,1750260633274,-507.75060921,0.00020648,2]
[366448549,1750260633284,-582.43398316,0.00020648,2]
[366448550,1750260633294,-1000.0,0.00020648,2]
[366448551,1750260633305,-500.0,0.00020648,2]
[366448552,1750260633315,-486.09938044,0.00020648,2]
[366448553,1750260633325,-503.03143341,0.00020648,2]
[366448554,1750260633336,-507.94950767,0.00020648,2]
[366448555,1750260633438,-500.0,0.00020648,2]
[366448557,1750260633448,-173.859,0.00020676,2]
[366448558,1750260633458,-690.78322901,0.00020678,2]
[366448559,1750260633468,-414.04544336,0.00020693,2]
[366448560,1750260633478,-582.59146545,0.00020789,2]
[366448561,1750260633487,-2458.97213431,0.000209,4]